fUST/lending_fUST_20250607
["ID","MTS","AMOUNT","RATE_DAILY","PERIOD"]
[364926493,1749305439856,-3000.0,0.0002199,2]
[364926494,1749305439868,-500.0,0.00021999,2]
[364926495,1749305439880,-500.0,0.00021999,2]
[364926496,1749305439892,-500.0,0.00021999,2]
[364926497,1749305439904,-500.0,0.00021999,2]
[364926498,1749305439916,-335.46026215,0.00021999,2]
[364926499,1749305439928,-500.0,0.00021999,2]
[364926500,1749305439940,-202.26904073,0.00021999,2]
[364926501,1749305439953,-3000.0,0.00022,2]
[364926503,1749305439964,-1000.0,0.00022,22]
[364926504,1749305439976,-155.0,0.00022,2]
[364926505,1749305439988,-3000.0,0.0002201,2]
[364926506,1749305440000,-3000.0,0.0002202,2]
[364926507,1749305440011,-3000.0,0.0002203,2]
[364926508,1749305440022,-3000.0,0.0002204,2]
[364926509,1749305440036,-3000.0,0.0002205,2]
[364926510,1749305440048,-3000.0,0.0002206,2]
[364926511,1749305440060,-3000.0,0.0002207,2]
[364926512,1749305440071,-3000.0,0.0002208,2]
[364926513,1749305440084,-3000.0,0.0002209,2]
[364926514,1749305440095,-3000.0,0.000221,2]
[364926515,1749305440107,-500.0,0.000221,2]
[364926516,1749305440118,-500.0,0.000221,2]
[364926517,1749305440131,-500.0,0.000221,2]
[364926518,1749305440142,-500.0,0.000221,2]
[364926519,1749305440153,-500.0,0.000221,2]
[364926520,1749305440164,-500.0,0.000221,2]
[364926521,1749305440176,-500.0,0.000221,2]
[364926522,1749305440187,-500.0,0.000221,2]
[364926525,1749305440198,-570.48775051,0.000221,2]
[364926527,1749305440209,-500.0,0.000221,2]
[364926529,1749305440219,-600.0,0.000221,2]
[364926531,1749305440230,-3000.0,0.0002211,2]
[364926533,1749305440242,-3000.0,0.0002212,2]
[364926535,1749305440252,-3000.0,0.0002213,2]
[364926537,1749305440263,-3000.0,0.0002214,2]
[364926539,1749305440280,-755.04090524,0.00022141,6]
[364926540,1749305440291,-3000.0,0.0002215,2]
[364926541,1749305440302,-3000.0,0.0002216,2]
[364926543,1749305440313,-3000.0,0.0002217,2]
[364926544,1749305440325,-3000.0,0.0002218,2]
[364926545,1749305440336,-3000.0,0.0002219,2]
[364926547,1749305440347,-456.55,0.00022191,2]
[364926548,1749305440589,-875.66,0.00022191,2]
[364926549,1749305440599,-521.8,0.00022191,2]
[364926550,1749305440610,-572.16,0.00022191,2]
[364926551,1749305440620,-531.68,0.00022191,2]
[364926552,1749305440629,-440.0,0.00022191,2]
[364926553,1749305440639,-440.0,0.00022191,2]
[364926554,1749305440653,-155.0,0.00022192,7]
[364926555,1749305440663,-3000.0,0.000222,2]
[364926556,1749305440673,-3000.0,0.0002221,2]
[364926557,1749305440683,-3000.0,0.0002222,2]
[364926558,1749305440692,-3000.0,0.0002223,2]
[364926559,1749305440702,-3000.0,0.0002224,2]
[364926560,1749305440711,-3000.0,0.0002225,2]
[364926561,1749305440721,-3000.0,0.0002226,2]
[364926562,1749305440730,-3000.0,0.0002227,2]
[364926563,1749305440740,-3000.0,0.0002228,2]
[364926564,1749305440749,-3000.0,0.0002229,2]
[364926565,1749305440760,-3000.0,0.000223,2]
[364926566,1749305440770,-3000.0,0.0002231,2]
[364926567,1749305440780,-755.04090524,0.00022314,7]
[364926568,1749305440790,-3000.0,0.0002232,2]
[364926569,1749305440802,-3000.0,0.0002233,2]
[364926570,1749305440811,-4028.871181,0.0002234,2]
[364926571,1749305440823,-456.55,0.00022465,2]
[364926572,1749305440833,-875.66,0.00022465,2]
[364926573,1749305440843,-521.8,0.00022465,2]
[364926574,1749305440852,-572.16,0.00022465,2]
[364926575,1749305440862,-531.68,0.00022465,2]
[364926576,1749305440872,-440.0,0.00022465,2]
[364926577,1749305440882,-440.0,0.00022465,2]
[364926578,1749305440892,-755.04090524,0.00022486,7]
[364926579,1749305440902,-1340.0,0.000225,4]
[364926580,1749305440911,-541.24,0.000225,7]
[364926581,1749305440921,-166.51826008,0.00022545,2]
[364926582,1749305440930,-540.44970765,0.00022648,2]
[364926583,1749305440939,-500.0,0.00022648,2]
[364926584,1749305440949,-500.0,0.00022648,2]
[364926585,1749305440959,-1000.0,0.00022648,2]
[364926586,1749305440968,-1000.0,0.00022648,2]
[364926587,1749305440978,-500.0,0.00022648,2]
[364926588,1749305440987,-500.0,0.00022648,2]
[364926589,1749305440997,-500.0,0.00022648,2]
[364926590,1749305441007,-1000.0,0.00022648,2]
[364926591,1749305441017,-1200.0,0.00022648,2]
[364926592,1749305441027,-755.04090524,0.00022659,7]
[364926593,1749305441037,-456.55,0.00022739,2]
[364926594,1749305441047,-875.66,0.00022739,2]
[364926595,1749305441057,-521.8,0.00022739,2]
[364926596,1749305441066,-572.16,0.00022739,2]
[364926597,1749305441076,-531.68,0.00022739,2]
[364926598,1749305441085,-440.0,0.00022739,2]
[364926599,1749305441095,-440.0,0.00022739,2]
[364926600,1749305441104,-755.04090524,0.00022831,8]
[364926601,1749305441114,-488.61,0.00023,2]
[364926602,1749305441124,-400.0906967,0.00023,2]
[364926603,1749305441133,-1000.0,0.00023,23]
[364926604,1749305441143,-2000.0,0.00023,2]
[364926605,1749305441153,-755.04090524,0.00023003,8]
[364926606,1749305441162,-215.0738,0.00023007,2]
[364926607,1749305441172,-456.55,0.00023013,2]
[364926608,1749305441181,-875.66,0.00023013,2]
[364926609,1749305441190,-521.8,0.00023013,2]
[364926610,1749305441201,-572.16,0.00023013,2]
[364926611,1749305441210,-531.68,0.00023013,2]
[364926612,1749305441219,-440.0,0.00023013,2]
[364926613,1749305441228,-440.0,0.00023013,2]
[364926614,1749305441238,-155.0,0.00023014,7]
[364926615,1749305441247,-500.0,0.00023047,2]
[364926616,1749305441257,-3578.31,0.00023116,2]
[364926617,1749305441267,-755.04090524,0.00023176,8]
[364926618,1749305441276,-500.0,0.00023196,2]
[364926619,1749305441286,-1000.0,0.00023196,2]
[364926620,1749305441295,-1500.0,0.00023196,2]
[364926621,1749305441305,-1800.0,0.00023196,2]
[364926622,1749305441315,-456.55,0.00023287,2]
[364926623,1749305441325,-875.66,0.00023287,2]
[364926624,1749305441334,-521.8,0.00023287,2]
[364926625,1749305441344,-572.16,0.00023287,2]
[364926626,1749305441354,-531.68,0.00023287,2]
[364926627,1749305441364,-440.0,0.00023287,2]
[364926628,1749305441376,-440.0,0.00023287,2]
[364926629,1749305441387,-755.04090524,0.00023348,9]
[364926630,1749305441397,-500.0,0.00023429,2]
[364926631,1749305441407,-156.9909581,0.00023479,2]
[364926632,1749305441418,-2000.0,0.000235,2]
[364926633,1749305441430,-620.852832,0.0002352,3]
[364926634,1749305441440,-755.04090524,0.00023521,9]
[364926635,1749305441452,-456.55,0.00023561,2]
[364926636,1749305441462,-875.66,0.00023561,2]
[364926637,1749305441472,-521.8,0.00023561,2]
[364926638,1749305441482,-572.16,0.00023561,2]
[364926639,1749305441492,-531.68,0.00023561,2]
[364926640,1749305441502,-440.0,0.00023561,2]
[364926641,1749305441512,-316.74873821,0.00023561,2]
[364926642,1749305441522,-153.0,0.00023562,2]
[364926643,1749305441533,-153.0,0.00023562,2]
[364926644,1749305441543,-153.0,0.00023562,2]
[364926645,1749305441553,-5000.0,0.00023641,2]
[364926646,1749305441564,-755.04090524,0.00023693,9]
[364926647,1749305441574,-364.7843186,0.00023699,2]
[364926648,1749305441584,-364.7843186,0.00023699,2]
[364926649,1749305441595,-364.7843186,0.00023699,2]
[364926650,1749305441604,-153.7876766,0.00023699,2]
[364926651,1749305441616,-1000.0,0.00023744,2]
[364926652,1749305441627,-600.0,0.00023744,2]
[364926653,1749305441638,-5861.67,0.0002378,11]
[364926654,1749305441651,-598.28,0.0002378,11]
[364926655,1749305441661,-156.9909581,0.00023781,2]
[364926656,1749305441671,-456.55,0.00023835,2]
[364926657,1749305441682,-875.66,0.00023835,2]
[364926658,1749305441695,-521.8,0.00023835,2]
[364926659,1749305441706,-572.16,0.00023835,2]
[364926660,1749305441716,-531.68,0.00023835,2]
[364926661,1749305441727,-440.0,0.00023835,2]
[364926662,1749305441750,-3398.83069002,0.0002385,10]
[364926663,1749305441761,-755.04090524,0.00023866,10]
[364926664,1749305441771,-500.0,0.00023973,2]
[364926665,1749305441781,-500.0,0.00023973,2]
[364926666,1749305441791,-440.0,0.00023999,2]
[364926667,1749305441801,-380.0,0.00023999,2]
[364926668,1749305441812,-440.0,0.00023999,2]
[364926669,1749305441822,-446.59,0.00023999,2]
[364926670,1749305441832,-440.0,0.00023999,2]
[364926671,1749305441842,-440.0,0.00023999,2]
[364926672,1749305441852,-440.0,0.00023999,2]
[364926673,1749305441860,-440.0,0.00023999,2]
[364926674,1749305441870,-384.24276267,0.00023999,2]
[364926675,1749305441880,-440.0,0.00023999,2]
[364926676,1749305441890,-296.44097479,0.00023999,2]
[364926677,1749305441901,-440.0,0.00023999,2]
[364926678,1749305441911,-440.0,0.00023999,2]
[364926679,1749305441921,-440.0,0.00023999,2]
[364926680,1749305441930,-541.17400821,0.00023999,2]
[364926681,1749305441940,-500.0,0.00023999,2]
[364926682,1749305441950,-440.0,0.00023999,2]
[364926683,1749305441959,-440.0,0.00023999,2]
[364926684,1749305441969,-440.0,0.00023999,2]
[364926685,1749305441979,-440.0,0.00023999,2]
[364926686,1749305441988,-440.0,0.00023999,2]
[364926687,1749305441998,-200.0,0.00023999,10]
[364926688,1749305442008,-200.0,0.00023999,10]
[364926689,1749305442017,-200.0,0.00023999,10]
[364926690,1749305442027,-440.0,0.00023999,2]
[364926691,1749305442038,-349.038245,0.00023999,10]
[364926692,1749305442047,-295.99655748,0.00023999,2]
[364926693,1749305442057,-440.0,0.00023999,2]
[364926694,1749305442067,-440.0,0.00023999,2]
[364926695,1749305442078,-440.0,0.00023999,2]
[364926696,1749305442087,-440.0,0.00023999,2]
[364926697,1749305442098,-457.56,0.00023999,2]
[364926698,1749305442109,-458.75,0.00023999,2]
[364926699,1749305442121,-324.69,0.00023999,2]
[364926700,1749305442131,-512.4,0.00023999,2]
[364926701,1749305442141,-440.0,0.00023999,2]
[364926702,1749305442151,-440.0,0.00023999,2]
[364926703,1749305442162,-440.0,0.00023999,2]
[364926704,1749305442171,-440.0,0.00023999,2]
[364926705,1749305442181,-440.0,0.00023999,2]
[364926706,1749305442191,-440.0,0.00023999,2]
[364926707,1749305442202,-440.0,0.00023999,2]
[364926708,1749305442211,-440.0,0.00023999,2]
[364926709,1749305442221,-440.0,0.00023999,2]
[364926710,1749305442231,-440.0,0.00023999,2]
[364926711,1749305442240,-375.60490511,0.00023999,2]
[364926712,1749305442250,-440.0,0.00023999,2]
[364926713,1749305442260,-440.0,0.00023999,2]
[364926714,1749305442270,-440.0,0.00023999,2]
[364926715,1749305442279,-440.0,0.00023999,2]
[364926716,1749305442289,-440.0,0.00023999,2]
[364926717,1749305442299,-440.0,0.00023999,2]
[364926718,1749305442309,-440.0,0.00023999,2]
[364926719,1749305442318,-440.0,0.00023999,2]
[364926720,1749305442328,-322.68253243,0.00023999,2]
[364926721,1749305442338,-440.0,0.00023999,2]
[364926722,1749305442347,-440.0,0.00023999,2]
[364926723,1749305442357,-440.0,0.00023999,2]
[364926724,1749305442368,-440.0,0.00023999,2]
[364926725,1749305442378,-440.0,0.00023999,2]
[364926726,1749305442387,-440.0,0.00023999,2]
[364926727,1749305442397,-26809.36381123,0.00024,2]
[364926728,1749305442407,-167859.37311874,0.00024,2]
[364926729,1749305442417,-9884.71408012,0.00024,2]
[364926730,1749305442427,-2000.0,0.00024,2]
[364926731,1749305442436,-12513.756086,0.00024,2]
[364926732,1749305442446,-151.0,0.00024,7]
[364926733,1749305442456,-229.33776026,0.00024,21]
[364926734,1749305442467,-1683.578845,0.00024,2]
[364926735,1749305442476,-10091.34328791,0.00024,2]
[364926736,1749305442486,-151.0,0.00024,7]
[364926737,1749305442496,-157.478414,0.00024,7]
[364926738,1749305442506,-157.478414,0.00024,7]
[364926739,1749305442516,-109570.44,0.00024,7]
[364926740,1749305442526,-207.0,0.00024,2]
[364926741,1749305442537,-1000.0,0.00024,24]
[364926743,1749305442547,-151.0,0.00024,9]
[364926744,1749305442557,-1350.63,0.00024,7]
[364926746,1749305442568,-3326.33033511,0.00024,2]
[364926748,1749305442578,-1031.17,0.00024,2]
[364926750,1749305442587,-2000.0,0.00024,2]
[364926752,1749305442596,-158.2,0.00024,2]
[364926754,1749305442607,-316.0017448,0.00024,3]
[364926755,1749305442616,-315.08178181,0.00024,7]
[364926757,1749305442626,-834.52263295,0.00024,7]
[364926760,1749305442635,-1743.0,0.00024,3]
[364926763,1749305442647,-1061.77496033,0.00024,3]
[364926766,1749305442658,-316.0,0.00024,3]
[364926768,1749305442668,-316.0,0.00024,3]
[364926771,1749305442678,-316.0,0.00024,3]
[364926774,1749305442688,-316.0,0.00024,3]
[364926777,1749305442699,-316.0,0.00024,3]
[364926780,1749305442709,-316.0,0.00024,3]
[364926783,1749305442719,-316.0,0.00024,3]
[364926786,1749305442729,-316.0,0.00024,3]
[364926789,1749305442739,-316.0,0.00024,3]
[364926792,1749305442749,-326.13480106,0.00024,3]
[364926795,1749305442759,-755.04090524,0.00024038,10]
[364926797,1749305442768,-4898.89,0.0002408,30]
[364926799,1749305442778,-1000.0,0.000241,2]
[364926801,1749305442789,-541.24,0.000241,7]
[364926803,1749305442798,-151.0,0.00024109,7]
[364926805,1749305442807,-151.0,0.00024109,7]
[364926807,1749305442817,-471.11,0.00024109,2]
[364926809,1749305442827,-456.55,0.00024109,2]
[364926811,1749305442838,-875.66,0.00024109,2]
[364926814,1749305442848,-521.8,0.00024109,2]
[364926816,1749305442859,-572.16,0.00024109,2]
[364926818,1749305442869,-531.68,0.00024109,2]
[364926820,1749305442878,-233.71,0.00024109,2]
[364926822,1749305442888,-500.0,0.0002413,2]
[364926824,1749305442898,-200.0,0.0002414,10]
[364926826,1749305442909,-500.0,0.00024143,2]
[364926829,1749305442920,-156.0,0.00024164,7]
[364926832,1749305442930,-5334.06768003,0.00024165,2]
[364926835,1749305442939,-60189.46668799,0.00024166,2]
[364926838,1749305442949,-42418.87881346,0.00024166,2]
[364926841,1749305442959,-32427.96,0.000242,2]
[364926843,1749305442969,-755.04090524,0.0002421,10]
[364926845,1749305442979,-440.0,0.00024273,2]
[364926847,1749305442989,-440.0,0.00024273,2]
[364926849,1749305442999,-440.0,0.00024273,2]
[364926851,1749305443008,-471.11,0.00024273,2]
[364926853,1749305443018,-440.0,0.00024273,2]
[364926855,1749305443029,-440.0,0.00024273,2]
[364926857,1749305443041,-440.0,0.00024273,2]
[364926860,1749305443050,-512.4,0.00024273,2]
[364926861,1749305443060,-440.0,0.00024273,2]
[364926864,1749305443070,-440.0,0.00024273,2]
[364926866,1749305443080,-430.0,0.00024273,2]
[364926868,1749305443091,-440.0,0.00024273,2]
[364926870,1749305443101,-440.0,0.00024273,2]
[364926872,1749305443111,-440.0,0.00024273,2]
[364926874,1749305443121,-440.0,0.00024273,2]
[364926876,1749305443131,-440.0,0.00024273,2]
[364926878,1749305443141,-440.0,0.00024273,2]
[364926880,1749305443151,-440.0,0.00024273,2]
[364926882,1749305443161,-831139.7315109,0.000243,2]
[364926885,1749305443180,-2114.70841849,0.000243,2]
[364926887,1749305443192,-430.0,0.000243,2]
[364926890,1749305443203,-33683.56468153,0.000243,2]
[364926896,1749305443256,-4268.6549739,0.000243,2]
[364926901,1749305443314,-28085.25618585,0.000243,2]
[364926902,1749305443326,-18045.89331603,0.000243,2]
[364926903,1749305443337,-691.14864273,0.000243,2]
[364927073,1749305445181,328.08046116,0.00018999,2]
[364927253,1749305449077,460.95697654,0.00018999,2]
[364927254,1749305455565,408.29925683,0.00018999,2]
[364927255,1749305455592,8091.70074317,0.00018999,2]
[364927257,1749305491128,2450.21903804,0.00024641,60]
[364927259,1749305603426,235.0,0.00024641,120]
[364927260,1749305703144,1003.0,0.00017,2]
[364927261,1749305880101,299.48602012,7e-07,2]
[364927267,1749306058294,20284.85285933,0.00024634,30]
[364927269,1749306182569,168.133203,0.00013699,2]
[364927270,1749306439142,-193.27664265,0.00019078,2]
[364927271,1749306439166,-3773.4587798,0.00019166,2]
[364927272,1749306439190,-300.0,0.00019177,2]
[364927273,1749306439213,-300.0,0.00019177,2]
[364927274,1749306439236,-440.0,0.00019178,2]
[364927275,1749306439260,-343.69697358,0.00019178,2]
[364927293,1749306632323,-193.27664263,0.00019078,2]
[364927294,1749306632334,-96.30302642,0.00019178,2]
[364927295,1749306632345,-440.0,0.00019178,2]
[364927296,1749306632354,-440.0,0.00019178,2]
[364927297,1749306632365,-440.0,0.00019178,2]
[364927298,1749306632375,-524.06645434,0.00019178,2]
[364927299,1749306632385,-440.0,0.00019178,2]
[364927300,1749306632396,-440.0,0.00019178,2]
[364927301,1749306632406,-440.0,0.00019178,2]
[364927302,1749306632416,-380.0,0.00019178,2]
[364927303,1749306632426,-440.0,0.00019178,2]
[364927304,1749306632437,-210.95651065,0.00019178,2]
[364927305,1749306632447,-440.0,0.00019178,2]
[364927306,1749306632457,-440.0,0.00019178,2]
[364927307,1749306632467,-440.0,0.00019178,2]
[364927308,1749306632476,-440.0,0.00019178,2]
[364927309,1749306632487,-440.0,0.00019178,2]
[364927310,1749306632498,-440.0,0.00019178,2]
[364927311,1749306632510,-440.0,0.00019178,2]
[364927312,1749306632520,-440.0,0.00019178,2]
[364927313,1749306632530,-440.0,0.00019178,2]
[364927314,1749306632540,-440.0,0.00019178,2]
[364927315,1749306632550,-440.0,0.00019178,2]
[364927316,1749306632560,-440.0,0.00019178,2]
[364927317,1749306632570,-440.0,0.00019178,2]
[364927318,1749306632580,-440.0,0.00019178,2]
[364927319,1749306632591,-440.0,0.00019178,2]
[364927320,1749306632601,-440.0,0.00019178,2]
[364927321,1749306632612,-440.0,0.00019178,2]
[364927322,1749306632622,-440.0,0.00019178,2]
[364927323,1749306632633,-440.0,0.00019178,2]
[364927324,1749306632643,-440.0,0.00019178,2]
[364927325,1749306632653,-261.81366239,0.00019178,2]
[364927326,1749306632664,-440.0,0.00019178,2]
[364927327,1749306632673,-440.0,0.00019178,2]
[364927328,1749306632683,-410.0,0.00019178,2]
[364927329,1749306632692,-440.0,0.00019178,2]
[364927330,1749306632702,-440.0,0.00019178,2]
[364927331,1749306632712,-204.36756907,0.00019178,2]
[364927332,1749306632721,-440.0,0.00019178,2]
[364927333,1749306632731,-440.0,0.00019178,2]
[364927334,1749306632741,-440.0,0.00019178,2]
[364927335,1749306632750,-440.0,0.00019178,2]
[364927336,1749306632765,-440.0,0.00019178,2]
[364927337,1749306632775,-440.0,0.00019178,2]
[364927338,1749306632785,-440.0,0.00019178,2]
[364927339,1749306632795,-440.0,0.00019178,2]
[364927340,1749306632805,-440.0,0.00019178,2]
[364927341,1749306632816,-440.0,0.00019178,2]
[364927342,1749306632826,-197.59971778,0.00019178,2]
[364927343,1749306632838,-440.0,0.00019178,2]
[364927344,1749306632848,-440.0,0.00019178,2]
[364927345,1749306632858,-430.0,0.00019178,2]
[364927346,1749306632868,-469.7,0.00019178,2]
[364927347,1749306632879,-440.0,0.00019178,2]
[364927348,1749306632890,-440.0,0.00019178,2]
[364927349,1749306632901,-85.63941786,0.00019178,2]
[364927350,1749306632916,-354.36058214,0.00019178,2]
[364927351,1749306632926,-440.0,0.00019178,2]
[364927352,1749306632936,-246.39833261,0.00019178,2]
[364927353,1749306632953,-193.60166739,0.00019178,2]
[364927354,1749306632963,-457.94,0.00019178,2]
[364927355,1749306632974,-430.0,0.00019178,2]
[364927356,1749306632984,-430.0,0.00019178,2]
[364927357,1749306632994,-440.0,0.00019178,2]
[364927358,1749306633004,-440.0,0.00019178,2]
[364927359,1749306633014,-440.0,0.00019178,2]
[364927360,1749306633025,-263.5129292,0.00019178,2]
[364927361,1749306633035,-440.0,0.00019178,2]
[364927362,1749306633045,-440.0,0.00019178,2]
[364927363,1749306633055,-420.0,0.00019178,2]
[364927364,1749306633065,-440.0,0.00019178,2]
[364927365,1749306633076,-480.62177314,0.00019178,2]
[364927366,1749306633086,-440.0,0.00019178,2]
[364927367,1749306633096,-440.0,0.00019178,2]
[364927368,1749306633106,-439.41965538,0.00019178,2]
[364927369,1749306633115,-430.0,0.00019178,2]
[364927370,1749306633125,-440.0,0.00019178,2]
[364927371,1749306633134,-440.0,0.00019178,2]
[364927372,1749306633144,-440.0,0.00019178,2]
[364927373,1749306633159,-337.24598555,0.00019178,2]
[364927374,1749306633169,-440.0,0.00019178,2]
[364927375,1749306633179,-440.0,0.00019178,2]
[364927376,1749306633188,-214.8133355,0.00019178,2]
[364927377,1749306633200,-440.0,0.00019178,2]
[364927378,1749306633210,-440.0,0.00019178,2]
[364927379,1749306633220,-440.0,0.00019178,2]
[364927380,1749306633231,-440.0,0.00019178,2]
[364927381,1749306633241,-160.0,0.00019178,2]
[364927382,1749306633251,-440.0,0.00019178,2]
[364927383,1749306633261,-440.0,0.00019178,2]
[364927384,1749306633272,-440.0,0.00019178,2]
[364927385,1749306633282,-440.0,0.00019178,2]
[364927386,1749306633292,-440.0,0.00019178,2]
[364927387,1749306633302,-122.47058886,0.00019178,2]
[364927436,1749306643348,-419.22941114,0.00019178,2]
[364927437,1749306643358,-440.0,0.00019178,2]
[364927438,1749306643368,-440.0,0.00019178,2]
[364927439,1749306643379,-440.0,0.00019178,2]
[364927440,1749306643389,-262.60028222,0.00019178,2]
[364927441,1749306643399,-250.8555093,0.00019432,2]
[364927442,1749306643410,-440.0,0.00019452,2]
[364927443,1749306643420,-440.0,0.00019452,2]
[364927444,1749306643430,-436.89,0.00019452,2]
[364927445,1749306643440,-440.0,0.00019452,2]
[364927446,1749306643449,-469.7,0.00019452,2]
[364927447,1749306643459,-440.0,0.00019452,2]
[364927448,1749306643470,-440.0,0.00019452,2]
[364927449,1749306643481,-440.0,0.00019452,2]
[364927450,1749306643495,-440.0,0.00019452,2]
[364927451,1749306643505,-373.54,0.00019452,2]
[364927452,1749306643515,-405.42,0.00019452,2]
[364927454,1749306643525,-440.0,0.00019452,2]
[364927456,1749306643535,-440.0,0.00019452,2]
[364927457,1749306643545,-220.9,0.00019452,2]
[364927459,1749306643555,-440.0,0.00019452,2]
[364927461,1749306643566,-440.0,0.00019452,2]
[364927462,1749306643576,-440.0,0.00019452,2]
[364927464,1749306643586,-314.68,0.00019452,2]
[364927466,1749306643596,-588.7692279,0.00019571,2]
[364927468,1749306643606,-440.0,0.00019726,2]
[364927469,1749306643616,-440.0,0.00019726,2]
[364927470,1749306643626,-440.0,0.00019726,2]
[364927471,1749306643636,-469.7,0.00019726,2]
[364927472,1749306643646,-440.0,0.00019726,2]
[364927473,1749306643656,-440.0,0.00019726,2]
[364927474,1749306643665,-440.0,0.00019726,2]
[364927475,1749306643676,-297.31061788,0.00019726,2]
[364927476,1749306643686,-440.0,0.00019726,2]
[364927477,1749306643696,-440.0,0.00019726,2]
[364927478,1749306643706,-440.0,0.00019726,2]
[364927479,1749306643716,-440.0,0.00019726,2]
[364927480,1749306643726,-440.0,0.00019726,2]
[364927481,1749306643736,-151.0,0.00019972,2]
[364927482,1749306643746,-151.0,0.00019972,2]
[364927483,1749306643756,-158.70241031,0.00019972,2]
[364927484,1749306643766,-1338.97644786,0.00019985,2]
[364927485,1749306643776,-440.0,0.0002,2]
[364927486,1749306643786,-440.0,0.0002,2]
[364927487,1749306643795,-440.0,0.0002,2]
[364927488,1749306643805,-469.7,0.0002,2]
[364927489,1749306643815,-440.0,0.0002,2]
[364927490,1749306643825,-440.0,0.0002,2]
[364927491,1749306643834,-440.0,0.0002,2]
[364927492,1749306643844,-440.0,0.0002,2]
[364927493,1749306643854,-440.0,0.0002,2]
[364927494,1749306643865,-440.0,0.0002,2]
[364927495,1749306643875,-440.0,0.0002,2]
[364927496,1749306643885,-440.0,0.0002,2]
[364927497,1749306643895,-241.687,0.000202,2]
[364927498,1749306643905,-440.0,0.00020273,2]
[364927499,1749306643915,-440.0,0.00020273,2]
[364927500,1749306643926,-440.0,0.00020273,2]
[364927501,1749306643936,-469.7,0.00020273,2]
[364927502,1749306643946,-440.0,0.00020273,2]
[364927503,1749306643955,-440.0,0.00020273,2]
[364927504,1749306643966,-440.0,0.00020273,2]
[364927505,1749306643976,-522.94395028,0.00020273,2]
[364927506,1749306643987,-440.0,0.00020273,2]
[364927507,1749306643997,-440.0,0.00020273,2]
[364927508,1749306644007,-440.0,0.00020273,2]
[364927509,1749306644017,-440.0,0.00020273,2]
[364927510,1749306644028,-213.01382694,0.00020417,2]
[364927511,1749306644038,-834.52263295,0.00020417,2]
[364927512,1749306644049,-842.5625,0.0002042,2]
[364927513,1749306644059,-440.0,0.00020547,2]
[364927514,1749306644069,-440.0,0.00020547,2]
[364927515,1749306644080,-469.7,0.00020547,2]
[364927516,1749306644090,-493.93416523,0.00020547,2]
[364927517,1749306644100,-440.0,0.00020547,2]
[364927518,1749306644111,-440.0,0.00020547,2]
[364927519,1749306644120,-440.0,0.00020547,2]
[364927520,1749306644131,-409.09955954,0.00020547,2]
[364927521,1749306644140,-440.0,0.00020547,2]
[364927522,1749306644150,-458.40115107,0.00020547,2]
[364927523,1749306644161,-666.0,0.00020548,2]
[364927524,1749306644172,-440.0,0.00020821,2]
[364927525,1749306644182,-579.73252015,0.00020821,2]